[Event "Polofinale MCR junioru 2023"]
[Site "Czech Republic"]
[Date "2023.11.14"]
[Round "4.17"]
[White "Bezdek, Tomas"]
[Black "Vylicil, Adam"]
[Result "1-0"]
[TimeControl "90 min per 40 moves + 15 min + 30 sec / move from move 1"]
[WhiteFideId "23733551"]
[BlackFideId "23717556"]
[WhiteElo "2078"]
[BlackElo "1896"]

1. e4 {[%clk 01:30:57]} {[%emt 00:00:02]} e6 {[%clk 01:28:16]} {[%emt
00:02:43]} 2. d4 {[%clk 01:31:21]} {[%emt 00:00:08]} d5 {[%clk 01:28:35]}
{[%emt 00:00:11]} 3. e5 {[%clk 01:31:46]} {[%emt 00:00:05]} c5 {[%clk
01:28:48]} {[%emt 00:00:18]} 4. c3 {[%clk 01:32:07]} {[%emt 00:00:08]} Nc6
{[%clk 01:29:13]} {[%emt 00:00:05]} 5. Nf3 {[%clk 01:32:30]} {[%emt 00:00:06]}
Bd7 {[%clk 01:29:39]} {[%emt 00:00:05]} 6. Bd3 {[%clk 01:32:51]} {[%emt
00:00:09]} cxd4 {[%clk 01:28:16]} {[%emt 00:01:52]} 7. O-O {[%clk 01:33:14]}
{[%emt 00:00:08]} dxc3 {[%clk 01:25:10]} {[%emt 00:03:37]} 8. Nxc3 {[%clk
01:33:36]} {[%emt 00:00:07]} a6 {[%clk 01:24:44]} {[%emt 00:00:57]} 9. Re1
{[%clk 01:24:59]} {[%emt 00:09:06]} Be7 {[%clk 01:19:31]} {[%emt 00:05:42]} 10.
a3 {[%clk 01:20:09]} {[%emt 00:05:21]} g5 {[%clk 01:07:42]} {[%emt 00:12:19]}
11. h3 {[%clk 01:12:59]} {[%emt 00:07:40]} Kf8 {[%clk 00:59:48]} {[%emt
00:08:24]} 12. Nh2 {[%clk 01:07:53]} {[%emt 00:05:36]} h5 {[%clk 00:56:56]}
{[%emt 00:03:21]} 13. Qf3 {[%clk 01:02:52]} {[%emt 00:05:31]} Nd4 {[%clk
00:52:54]} {[%emt 00:04:33]} 14. Qd1 {[%clk 00:59:38]} {[%emt 00:03:44]} Nc6
{[%clk 00:52:15]} {[%emt 00:01:09]} 15. b4 {[%clk 00:41:29]} {[%emt 00:18:38]}
Nxe5 {[%clk 00:32:12]} {[%emt 00:20:34]} 16. Rxe5 {[%clk 00:37:40]} {[%emt
00:04:18]} Bf6 {[%clk 00:32:26]} {[%emt 00:00:16]} 17. Qe1 {[%clk 00:35:58]}
{[%emt 00:02:13]} Bxe5 {[%clk 00:24:10]} {[%emt 00:08:45]} 18. Qxe5 {[%clk
00:35:43]} {[%emt 00:00:45]} f6 {[%clk 00:24:39]} {[%emt 00:00:01]} 19. Qd4
{[%clk 00:31:43]} {[%emt 00:04:30]} Kg7 {[%clk 00:21:00]} {[%emt 00:04:08]} 20.
Bb2 {[%clk 00:25:57]} {[%emt 00:06:16]} Ne7 {[%clk 00:12:13]} {[%emt 00:09:18]}
21. f4 {[%clk 00:24:35]} {[%emt 00:01:51]} Nc6 {[%clk 00:11:24]} {[%emt
00:01:19]} 22. Qf2 {[%clk 00:24:25]} {[%emt 00:00:40]} gxf4 {[%clk 00:09:20]}
{[%emt 00:02:34]} 23. Qxf4 {[%clk 00:23:33]} {[%emt 00:01:22]} d4 {[%clk
00:03:14]} {[%emt 00:06:37]} 24. Ne4 {[%clk 00:20:02]} {[%emt 00:04:00]} e5
{[%clk 00:02:18]} {[%emt 00:01:28]} 25. Qg3+ {[%clk 00:20:24]} {[%emt
00:00:07]} Kf8 {[%clk 00:01:10]} {[%emt 00:01:38]} 26. Nxf6 {[%clk 00:19:48]}
{[%emt 00:01:06]} 1-0

[Event "Polofinale MCR junioru 2023"]
[Site "Czech Republic"]
[Date "2023.11.14"]
[Round "4.18"]
[White "Cerny, Michal"]
[Black "Kubiczek, Michal"]
[Result "1/2-1/2"]
[TimeControl "90 min per 40 moves + 15 min + 30 sec / move from move 1"]
[WhiteFideId "391964"]
[BlackFideId "23706996"]
[WhiteElo "1920"]
[BlackElo "2068"]

1. e4 {[%clk 01:30:56]} {[%emt 00:00:04]} g6 {[%clk 01:30:36]} {[%emt
00:00:25]} 2. d4 {[%clk 01:30:32]} {[%emt 00:00:54]} Bg7 {[%clk 01:30:49]}
{[%emt 00:00:16]} 3. Nf3 {[%clk 01:28:01]} {[%emt 00:03:01]} d6 {[%clk
01:31:04]} {[%emt 00:00:15]} 4. h3 {[%clk 01:27:49]} {[%emt 00:00:42]} a6
{[%clk 01:30:54]} {[%emt 00:00:41]} 5. c3 {[%clk 01:24:59]} {[%emt 00:03:21]}
e6 {[%clk 01:30:07]} {[%emt 00:01:16]} 6. Bd3 {[%clk 01:22:23]} {[%emt
00:03:06]} Ne7 {[%clk 01:29:56]} {[%emt 00:00:40]} 7. O-O {[%clk 01:18:28]}
{[%emt 00:04:25]} b6 {[%clk 01:29:17]} {[%emt 00:01:09]} 8. Re1 {[%clk
01:14:28]} {[%emt 00:04:28]} Bb7 {[%clk 01:29:16]} {[%emt 00:00:33]} 9. Nbd2
{[%clk 01:08:27]} {[%emt 00:06:31]} Nd7 {[%clk 01:28:52]} {[%emt 00:00:54]} 10.
Qe2 {[%clk 00:59:45]} {[%emt 00:09:12]} O-O {[%clk 01:28:03]} {[%emt 00:01:19]}
11. Nc4 {[%clk 00:59:07]} {[%emt 00:01:08]} h6 {[%clk 01:24:54]} {[%emt
00:03:39]} 12. Nh2 {[%clk 00:47:30]} {[%emt 00:12:08]} d5 {[%clk 01:14:02]}
{[%emt 00:11:22]} 13. exd5 {[%clk 00:44:18]} {[%emt 00:03:42]} Nxd5 {[%clk
01:12:01]} {[%emt 00:02:30]} 14. Ng4 {[%clk 00:43:45]} {[%emt 00:01:04]} Qh4
{[%clk 01:03:34]} {[%emt 00:08:56]} 15. Nce5 {[%clk 00:39:27]} {[%emt
00:04:48]} Nxe5 {[%clk 01:02:18]} {[%emt 00:01:46]} 16. Nxe5 {[%clk 00:38:18]}
{[%emt 00:01:39]} Nf4 {[%clk 00:55:58]} {[%emt 00:06:49]} 17. Bxf4 {[%clk
00:38:45]} {[%emt 00:00:03]} Qxf4 {[%clk 00:56:21]} {[%emt 00:00:07]} 18. g3
{[%clk 00:34:07]} {[%emt 00:05:09]} Qg5 {[%clk 00:52:01]} {[%emt 00:04:49]} 19.
Be4 {[%clk 00:32:02]} {[%emt 00:02:36]} Bxe4 {[%clk 00:50:01]} {[%emt
00:02:29]} 20. Qxe4 {[%clk 00:32:30]} {[%emt 00:00:02]} Bxe5 {[%clk 00:48:52]}
{[%emt 00:01:39]} 21. Qxe5 {[%clk 00:27:19]} {[%emt 00:05:41]} Qxe5 {[%clk
00:48:36]} {[%emt 00:00:45]} 22. dxe5 {[%clk 00:23:58]} {[%emt 00:03:52]} Rfd8
{[%clk 00:48:25]} {[%emt 00:00:40]} 23. Rad1 {[%clk 00:24:18]} {[%emt
00:00:11]} h5 {[%clk 00:47:45]} {[%emt 00:01:09]} 24. f4 {[%clk 00:24:06]}
{[%emt 00:00:42]} Kf8 {[%clk 00:47:56]} {[%emt 00:00:19]} 25. Kf2 {[%clk
00:24:12]} {[%emt 00:00:24]} Ke7 {[%clk 00:48:05]} {[%emt 00:00:21]} 26. h4
{[%clk 00:22:45]} {[%emt 00:01:57]} c6 {[%clk 00:46:40]} {[%emt 00:01:56]}
1/2-1/2

[Event "Polofinale MCR junioru 2023"]
[Site "Czech Republic"]
[Date "2023.11.14"]
[Round "4.19"]
[White "Hozda, Max"]
[Black "Roubal, Matyas"]
[Result "1/2-1/2"]
[TimeControl "90 min per 40 moves + 15 min + 30 sec / move from move 1"]
[WhiteFideId "23725958"]
[BlackFideId "23727152"]
[WhiteElo "2045"]
[BlackElo "1837"]

1. d4 {[%clk 01:27:32]} {[%emt 00:03:23]} Nf6 {[%clk 01:30:49]} {[%emt
00:00:16]} 2. c4 {[%clk 01:27:36]} {[%emt 00:00:26]} g6 {[%clk 01:31:09]}
{[%emt 00:00:09]} 3. Nf3 {[%clk 01:27:56]} {[%emt 00:00:10]} Bg7 {[%clk
01:31:27]} {[%emt 00:00:12]} 4. g3 {[%clk 01:28:18]} {[%emt 00:00:08]} O-O
{[%clk 01:31:48]} {[%emt 00:00:09]} 5. Bg2 {[%clk 01:28:44]} {[%emt 00:00:04]}
d6 {[%clk 01:32:15]} {[%emt 00:00:03]} 6. O-O {[%clk 01:28:38]} {[%emt
00:00:35]} Nc6 {[%clk 01:32:22]} {[%emt 00:00:23]} 7. Nc3 {[%clk 01:27:48]}
{[%emt 00:01:20]} Bf5 {[%clk 01:32:35]} {[%emt 00:00:17]} 8. d5 {[%clk
01:27:39]} {[%emt 00:00:40]} Na5 {[%clk 01:32:54]} {[%emt 00:00:12]} 9. Nd4
{[%clk 01:27:51]} {[%emt 00:00:18]} Bd7 {[%clk 01:31:29]} {[%emt 00:01:55]} 10.
b3 {[%clk 01:26:22]} {[%emt 00:02:00]} c5 {[%clk 01:30:27]} {[%emt 00:01:31]}
11. dxc6 {[%clk 01:25:55]} {[%emt 00:00:57]} Nxc6 {[%clk 01:30:43]} {[%emt
00:00:14]} 12. Bb2 {[%clk 01:24:41]} {[%emt 00:01:44]} Nxd4 {[%clk 01:28:43]}
{[%emt 00:02:29]} 13. Qxd4 {[%clk 01:25:07]} {[%emt 00:00:05]} Bc6 {[%clk
01:28:55]} {[%emt 00:00:18]} 14. Nd5 {[%clk 01:21:33]} {[%emt 00:04:03]} Ne8
{[%clk 01:22:08]} {[%emt 00:07:16]} 15. Qd2 {[%clk 01:21:42]} {[%emt 00:00:21]}
Bxb2 {[%clk 01:22:21]} {[%emt 00:00:18]} 16. Qxb2 {[%clk 01:22:09]} {[%emt
00:00:04]} Nc7 {[%clk 01:21:36]} {[%emt 00:01:15]} 17. e4 {[%clk 01:12:29]}
{[%emt 00:10:10]} Nxd5 {[%clk 01:16:00]} {[%emt 00:06:05]} 18. exd5 {[%clk
01:12:31]} {[%emt 00:00:28]} Bd7 {[%clk 01:16:20]} {[%emt 00:00:11]} 19. Rfe1
{[%clk 01:11:21]} {[%emt 00:01:39]} Re8 {[%clk 01:14:28]} {[%emt 00:02:21]} 20.
h4 {[%clk 01:07:37]} {[%emt 00:04:14]} h5 {[%clk 01:12:03]} {[%emt 00:02:55]}
21. Qd4 {[%clk 01:03:58]} {[%emt 00:04:10]} Qb6 {[%clk 01:06:17]} {[%emt
00:06:16]} 22. Qf4 {[%clk 01:01:49]} {[%emt 00:02:38]} Kg7 {[%clk 01:03:48]}
{[%emt 00:02:58]} 23. Rad1 {[%clk 00:52:30]} {[%emt 00:09:50]} Bf5 {[%clk
00:57:21]} {[%emt 00:06:56]} 24. Bf3 {[%clk 00:40:53]} {[%emt 00:12:08]} Bd7
{[%clk 00:54:21]} {[%emt 00:03:30]} 25. Bxh5 {[%clk 00:16:52]} {[%emt
00:24:31]} gxh5 {[%clk 00:54:01]} {[%emt 00:00:50]} 26. Qg5+ {[%clk 00:15:29]}
{[%emt 00:01:53]} Kf8 {[%clk 00:51:54]} {[%emt 00:02:37]} 27. Qh6+ {[%clk
00:15:45]} {[%emt 00:00:14]} Kg8 {[%clk 00:52:18]} {[%emt 00:00:06]} 28. Re6
{[%clk 00:05:36]} {[%emt 00:10:39]} fxe6 {[%clk 00:49:48]} {[%emt 00:03:00]} 29.
dxe6 {[%clk 00:05:53]} {[%emt 00:00:13]} Rf8 {[%clk 00:49:07]} {[%emt
00:01:11]} 30. Qg6+ {[%clk 00:02:41]} {[%emt 00:03:43]} Kh8 {[%clk 00:49:33]}
{[%emt 00:00:04]} 31. Qxh5+ {[%clk 00:02:55]} {[%emt 00:00:15]} Kg7 {[%clk
00:49:42]} {[%emt 00:00:21]} 32. Qg4+ {[%clk 00:02:19]} {[%emt 00:01:06]} Kh8
{[%clk 00:49:27]} {[%emt 00:00:46]} 33. Qh5+ {[%clk 00:00:45]} {[%emt
00:02:04]} 1/2-1/2

[Event "Polofinale MCR junioru 2023"]
[Site "Czech Republic"]
[Date "2023.11.14"]
[Round "4.20"]
[White "Vlcek, Vojtech"]
[Black "Jasso, Matej"]
[Result "0-1"]
[TimeControl "90 min per 40 moves + 15 min + 30 sec / move from move 1"]
[WhiteFideId "23728647"]
[BlackFideId "23710748"]
[WhiteElo "1703"]
[BlackElo "2033"]

1. d4 {[%clk 01:30:34]} {[%emt 00:00:24]} d5 {[%clk 01:29:59]} {[%emt
00:01:02]} 2. c4 {[%clk 01:30:36]} {[%emt 00:00:28]} e6 {[%clk 01:30:20]}
{[%emt 00:00:10]} 3. Nc3 {[%clk 01:31:00]} {[%emt 00:00:06]} Nf6 {[%clk
01:30:42]} {[%emt 00:00:07]} 4. Bg5 {[%clk 01:31:19]} {[%emt 00:00:11]} Bb4
{[%clk 01:29:08]} {[%emt 00:02:04]} 5. e3 {[%clk 01:28:25]} {[%emt 00:03:25]}
h6 {[%clk 01:27:58]} {[%emt 00:01:40]} 6. Bh4 {[%clk 01:27:29]} {[%emt
00:01:26]} O-O {[%clk 01:27:47]} {[%emt 00:00:41]} 7. Qb3 {[%clk 01:26:12]}
{[%emt 00:01:47]} Bxc3+ {[%clk 01:26:43]} {[%emt 00:01:34]} 8. Qxc3 {[%clk
01:25:43]} {[%emt 00:01:00]} Nbd7 {[%clk 01:25:34]} {[%emt 00:01:38]} 9. cxd5
{[%clk 01:23:54]} {[%emt 00:02:20]} exd5 {[%clk 01:25:28]} {[%emt 00:00:35]} 10.
Bd3 {[%clk 01:20:21]} {[%emt 00:04:01]} Re8 {[%clk 01:24:34]} {[%emt 00:01:25]}
11. Nf3 {[%clk 01:19:53]} {[%emt 00:00:59]} c6 {[%clk 01:21:38]} {[%emt
00:03:26]} 12. h3 {[%clk 01:15:58]} {[%emt 00:04:24]} Qb6 {[%clk 01:18:10]}
{[%emt 00:03:57]} 13. O-O {[%clk 01:15:02]} {[%emt 00:01:26]} Ne4 {[%clk
01:17:11]} {[%emt 00:01:30]} 14. Bxe4 {[%clk 01:15:05]} {[%emt 00:00:27]} dxe4
{[%clk 01:17:33]} {[%emt 00:00:08]} 15. Nd2 {[%clk 01:15:23]} {[%emt 00:00:12]}
Qb5 {[%clk 01:15:04]} {[%emt 00:02:58]} 16. f3 {[%clk 01:05:44]} {[%emt
00:10:09]} Qh5 {[%clk 01:13:26]} {[%emt 00:02:06]} 17. Bg3 {[%clk 01:05:49]}
{[%emt 00:00:26]} Qg6 {[%clk 01:11:02]} {[%emt 00:02:55]} 18. Kh2 {[%clk
01:05:04]} {[%emt 00:01:15]} exf3 {[%clk 00:55:03]} {[%emt 00:16:29]} 19. Rxf3
{[%clk 01:01:55]} {[%emt 00:03:39]} Qh5 {[%clk 00:52:35]} {[%emt 00:02:58]} 20.
e4 {[%clk 00:58:32]} {[%emt 00:03:52]} Nf6 {[%clk 00:52:39]} {[%emt 00:00:26]}
21. Re1 {[%clk 00:58:06]} {[%emt 00:00:57]} Be6 {[%clk 00:50:30]} {[%emt
00:02:36]} 22. Kg1 {[%clk 00:57:40]} {[%emt 00:00:57]} Rad8 {[%clk 00:47:32]}
{[%emt 00:03:29]} 23. Be5 {[%clk 00:51:44]} {[%emt 00:06:26]} Nd7 {[%clk
00:43:04]} {[%emt 00:04:58]} 24. Bf4 {[%clk 00:50:12]} {[%emt 00:02:02]} c5
{[%clk 00:36:00]} {[%emt 00:07:36]} 25. Rg3 {[%clk 00:39:27]} {[%emt 00:11:13]}
g6 {[%clk 00:31:05]} {[%emt 00:05:26]} 26. Nf3 {[%clk 00:34:21]} {[%emt
00:05:36]} cxd4 {[%clk 00:30:42]} {[%emt 00:00:53]} 27. Nxd4 {[%clk 00:34:29]}
{[%emt 00:00:22]} Kh7 {[%clk 00:21:55]} {[%emt 00:09:17]} 28. Bc7 {[%clk
00:32:26]} {[%emt 00:02:33]} Rc8 {[%clk 00:21:10]} {[%emt 00:01:15]} 29. Nxe6
{[%clk 00:28:28]} {[%emt 00:04:29]} Rxe6 {[%clk 00:20:17]} {[%emt 00:01:23]} 30.
Qa5 {[%clk 00:28:21]} {[%emt 00:00:37]} Qc5+ {[%clk 00:18:35]} {[%emt
00:02:12]} 31. Qxc5 {[%clk 00:28:26]} {[%emt 00:00:25]} Nxc5 {[%clk 00:19:00]}
{[%emt 00:00:06]} 32. Bf4 {[%clk 00:27:29]} {[%emt 00:01:25]} Nxe4 {[%clk
00:08:16]} {[%emt 00:11:15]} 33. Rb3 {[%clk 00:26:46]} {[%emt 00:01:12]} b6
{[%clk 00:08:02]} {[%emt 00:00:44]} 34. Rd3 {[%clk 00:20:55]} {[%emt 00:06:19]}
Rce8 {[%clk 00:06:43]} {[%emt 00:01:51]} 35. Rd7 {[%clk 00:18:27]} {[%emt
00:02:58]} R8e7 {[%clk 00:06:59]} {[%emt 00:00:14]} 36. Red1 {[%clk 00:18:40]}
{[%emt 00:00:16]} Nc5 {[%clk 00:05:25]} {[%emt 00:02:05]} 37. Rxe7 {[%clk
00:18:34]} {[%emt 00:00:36]} Rxe7 {[%clk 00:05:54]} {[%emt 00:00:01]} 38. Kf2
{[%clk 00:17:10]} {[%emt 00:01:53]} g5 {[%clk 00:05:38]} {[%emt 00:00:47]} 39.
Be3 {[%clk 00:16:33]} {[%emt 00:01:06]} Rd7 {[%clk 00:01:46]} {[%emt 00:04:23]}
40. Rd4 {[%clk 00:15:58]} {[%emt 00:01:05]} Rxd4 {[%clk 00:00:35]} {[%emt
00:01:42]} 41. Bxd4 {[%clk 00:16:02]} {[%emt 00:00:26]} Ne6 {[%clk 00:15:06]}
{[%emt 00:00:58]} 42. Be5 {[%clk 00:31:23]} {[%emt 00:00:08]} Kg6 {[%clk
00:14:32]} {[%emt 00:01:04]} 43. Ke3 {[%clk 00:31:25]} {[%emt 00:00:29]} f5
{[%clk 00:11:06]} {[%emt 00:03:56]} 44. Bb8 {[%clk 00:29:30]} {[%emt 00:02:25]}
a6 {[%clk 00:10:58]} {[%emt 00:00:38]} 45. b4 {[%clk 00:29:38]} {[%emt
00:00:22]} b5 {[%clk 00:10:50]} {[%emt 00:00:38]} 46. Be5 {[%clk 00:29:35]}
{[%emt 00:00:33]} h5 {[%clk 00:09:46]} {[%emt 00:01:33]} 47. Kf3 {[%clk
00:28:51]} {[%emt 00:01:13]} h4 {[%clk 00:08:44]} {[%emt 00:01:33]} 48. a3
{[%clk 00:27:44]} {[%emt 00:01:37]} Kf7 {[%clk 00:07:47]} {[%emt 00:01:27]} 49.
Ke3 {[%clk 00:27:47]} {[%emt 00:00:26]} Ke8 {[%clk 00:07:32]} {[%emt 00:00:46]}
50. Bf6 {[%clk 00:27:53]} {[%emt 00:00:23]} Kf7 {[%clk 00:06:59]} {[%emt
00:01:03]} 51. Be5 {[%clk 00:28:19]} {[%emt 00:00:04]} Ke7 {[%clk 00:07:25]}
{[%emt 00:00:04]} 52. Kd3 {[%clk 00:28:40]} {[%emt 00:00:08]} Kd7 {[%clk
00:07:51]} {[%emt 00:00:05]} 53. Bf6 {[%clk 00:29:00]} {[%emt 00:00:11]} Kd6
{[%clk 00:07:52]} {[%emt 00:00:30]} 54. Bh8 {[%clk 00:29:06]} {[%emt 00:00:23]}
Nf4+ {[%clk 00:06:10]} {[%emt 00:02:13]} 55. Kd4 {[%clk 00:29:13]} {[%emt
00:00:23]} Nxg2 {[%clk 00:04:38]} {[%emt 00:02:02]} 56. Be5+ {[%clk 00:29:22]}
{[%emt 00:00:21]} Ke6 {[%clk 00:05:00]} {[%emt 00:00:08]} 57. Bb8 {[%clk
00:28:49]} {[%emt 00:01:03]} g4 {[%clk 00:02:50]} {[%emt 00:02:40]} 58. hxg4
{[%clk 00:29:08]} {[%emt 00:00:11]} fxg4 {[%clk 00:03:18]} {[%emt 00:00:02]} 59.
Kc5 {[%clk 00:29:32]} {[%emt 00:00:06]} Kf5 {[%clk 00:03:23]} {[%emt 00:00:25]}
60. Kb6 {[%clk 00:29:55]} {[%emt 00:00:07]} Nf4 {[%clk 00:03:49]} {[%emt
00:00:04]} 61. Kxa6 {[%clk 00:30:12]} {[%emt 00:00:13]} h3 {[%clk 00:03:57]}
{[%emt 00:00:21]} 62. Kxb5 {[%clk 00:30:16]} {[%emt 00:00:26]} h2 {[%clk
00:04:23]} {[%emt 00:00:04]} 0-1

[Event "Polofinale MCR junioru 2023"]
[Site "Czech Republic"]
[Date "2023.11.14"]
[Round "4.21"]
[White "Rousek, Jan"]
[Black "Mrazek, Roman"]
[Result "1/2-1/2"]
[TimeControl "90 min per 40 moves + 15 min + 30 sec / move from move 1"]
[WhiteFideId "386669"]
[BlackFideId "23707062"]
[WhiteElo "2006"]
[BlackElo "1866"]

1. d4 {[%clk 01:30:54]} {[%emt 00:00:04]} d5 {[%clk 01:30:55]} {[%emt
00:00:06]} 2. Nf3 {[%clk 01:31:07]} {[%emt 00:00:16]} Nf6 {[%clk 01:31:19]}
{[%emt 00:00:07]} 3. g3 {[%clk 01:31:20]} {[%emt 00:00:17]} Bf5 {[%clk
01:31:04]} {[%emt 00:00:46]} 4. c4 {[%clk 01:31:28]} {[%emt 00:00:21]} e6
{[%clk 01:31:20]} {[%emt 00:00:15]} 5. Nc3 {[%clk 01:31:29]} {[%emt 00:00:28]}
h6 {[%clk 01:31:44]} {[%emt 00:00:07]} 6. Qb3 {[%clk 01:24:54]} {[%emt
00:07:04]} Nc6 {[%clk 01:32:00]} {[%emt 00:00:15]} 7. a3 {[%clk 01:10:32]}
{[%emt 00:14:51]} Na5 {[%clk 01:09:20]} {[%emt 00:23:11]} 8. Qa4+ {[%clk
01:10:00]} {[%emt 00:01:02]} c6 {[%clk 01:09:48]} {[%emt 00:00:02]} 9. c5
{[%clk 01:05:52]} {[%emt 00:04:38]} Nc4 {[%clk 01:03:18]} {[%emt 00:07:01]} 10.
Nd2 {[%clk 00:44:06]} {[%emt 00:22:16]} Nxd2 {[%clk 01:03:35]} {[%emt
00:00:13]} 11. Bxd2 {[%clk 00:44:30]} {[%emt 00:00:05]} Be7 {[%clk 01:02:21]}
{[%emt 00:01:44]} 12. Bg2 {[%clk 00:43:08]} {[%emt 00:01:52]} O-O {[%clk
01:02:17]} {[%emt 00:00:35]} 13. O-O {[%clk 00:43:22]} {[%emt 00:00:15]} e5
{[%clk 00:58:40]} {[%emt 00:04:08]} 14. dxe5 {[%clk 00:36:00]} {[%emt
00:07:52]} Nd7 {[%clk 00:58:44]} {[%emt 00:00:26]} 15. Qf4 {[%clk 00:31:33]}
{[%emt 00:04:50]} Bh7 {[%clk 00:57:27]} {[%emt 00:01:53]} 16. b4 {[%clk
00:30:27]} {[%emt 00:01:35]} Bg5 {[%clk 00:57:17]} {[%emt 00:00:41]} 17. Qd4
{[%clk 00:30:39]} {[%emt 00:00:17]} Bxd2 {[%clk 00:57:15]} {[%emt 00:00:34]} 18.
Qxd2 {[%clk 00:31:02]} {[%emt 00:00:06]} Nxe5 {[%clk 00:57:08]} {[%emt
00:00:37]} 19. e4 {[%clk 00:21:46]} {[%emt 00:09:45]} dxe4 {[%clk 00:57:08]}
{[%emt 00:00:30]} 20. Qd3 {[%emt 00:00:23]} Qd7 21. Qxd7 {[%clk 00:21:53]} Rac8
{[%emt 00:00:30]} 22. Qd8 Rcxd8 {[%clk 00:57:09]} 23. Nxe4 {[%clk 00:22:09]}
{[%emt 00:00:14]} Bxe4 {[%clk 00:56:34]} {[%emt 00:01:05]} 24. Bxe4 {[%emt
00:06:14]} Rd4 {[%clk 00:52:40]} 25. Rfe1 {[%clk 00:17:09]} {[%emt 00:04:06]}
Rfd8 {[%clk 00:44:53]} {[%emt 00:08:20]} 26. Bh7+ {[%clk 00:17:17]} {[%emt
00:00:22]} Kxh7 {[%clk 00:45:00]} {[%emt 00:00:23]} 1/2-1/2

[Event "Polofinale MCR junioru 2023"]
[Site "Czech Republic"]
[Date "2023.11.14"]
[Round "4.22"]
[White "Pelc, Adam"]
[Black "Andrle, Filip"]
[Result "1-0"]
[TimeControl "90 min per 40 moves + 15 min + 30 sec / move from move 1"]
[WhiteFideId "23723033"]
[BlackFideId "23718749"]
[WhiteElo "1856"]
[BlackElo "2005"]

1. Nf3 {[%clk 01:30:40]} {[%emt 00:00:11]} d5 {[%clk 01:28:28]} {[%emt
00:02:41]} 2. b3 {[%clk 01:30:38]} {[%emt 00:00:32]} Nf6 {[%clk 01:26:34]}
{[%emt 00:02:23]} 3. e3 {[%clk 01:30:20]} {[%emt 00:00:49]} g6 {[%clk
01:25:37]} {[%emt 00:01:27]} 4. Bb2 {[%clk 01:30:10]} {[%emt 00:00:39]} Bg7
{[%clk 01:25:14]} {[%emt 00:00:52]} 5. d4 {[%clk 01:26:58]} {[%emt 00:03:43]}
O-O {[%clk 01:21:26]} {[%emt 00:04:17]} 6. Nbd2 {[%clk 01:26:49]} {[%emt
00:00:40]} c5 {[%clk 01:17:37]} {[%emt 00:04:19]} 7. Ne5 {[%clk 01:20:26]}
{[%emt 00:06:53]} Nc6 {[%clk 01:13:59]} {[%emt 00:04:08]} 8. f4 {[%clk
01:14:55]} {[%emt 00:06:00]} Nxe5 {[%clk 01:03:27]} {[%emt 00:11:02]} 9. dxe5
{[%clk 01:12:08]} {[%emt 00:03:17]} Ng4 {[%clk 01:01:58]} {[%emt 00:01:58]} 10.
Qf3 {[%clk 01:12:07]} {[%emt 00:00:32]} d4 {[%clk 00:59:02]} {[%emt 00:03:26]}
11. exd4 {[%clk 01:11:32]} {[%emt 00:01:05]} cxd4 {[%clk 00:59:20]} {[%emt
00:00:12]} 12. Nc4 {[%clk 01:03:53]} {[%emt 00:08:09]} f6 {[%clk 00:40:04]}
{[%emt 00:19:46]} 13. h3 {[%clk 00:56:26]} {[%emt 00:07:57]} Ne3 {[%clk
00:28:09]} {[%emt 00:12:25]} 14. Nxe3 {[%clk 00:46:37]} {[%emt 00:10:19]} Qa5+
{[%clk 00:28:00]} {[%emt 00:00:38]} 15. c3 {[%clk 00:44:51]} {[%emt 00:02:17]}
dxe3 {[%clk 00:27:01]} {[%emt 00:01:29]} 16. Bc4+ {[%clk 00:42:28]} {[%emt
00:02:53]} Kh8 {[%clk 00:26:47]} {[%emt 00:00:44]} 17. e6 {[%clk 00:37:51]}
{[%emt 00:05:07]} Qf5 {[%clk 00:20:33]} {[%emt 00:06:44]} 18. Qxe3 {[%clk
00:31:56]} {[%emt 00:06:26]} g5 {[%clk 00:11:18]} {[%emt 00:09:45]} 19. fxg5
{[%clk 00:28:59]} {[%emt 00:03:27]} Qxg5 {[%clk 00:09:27]} {[%emt 00:02:21]} 20.
Qxg5 {[%clk 00:28:07]} {[%emt 00:01:22]} fxg5 {[%clk 00:09:48]} {[%emt
00:00:09]} 21. Rf1 {[%clk 00:28:21]} {[%emt 00:00:16]} Rf6 {[%clk 00:08:45]}
{[%emt 00:01:32]} 22. Rxf6 {[%clk 00:28:27]} {[%emt 00:00:25]} Bxf6 {[%clk
00:09:00]} {[%emt 00:00:14]} 23. Rd1 {[%clk 00:28:25]} {[%emt 00:00:33]} b6
{[%clk 00:05:32]} {[%emt 00:03:59]} 24. Rd8+ {[%clk 00:26:12]} {[%emt
00:02:42]} Kg7 {[%clk 00:05:54]} {[%emt 00:00:07]} 25. Bd5 {[%clk 00:24:23]}
{[%emt 00:02:19]} Rb8 {[%clk 00:05:41]} {[%emt 00:00:44]} 26. Kd1 {[%clk
00:17:53]} {[%emt 00:06:58]} Be5 {[%clk 00:02:26]} {[%emt 00:03:46]} 27. Ba3
{[%clk 00:14:20]} {[%emt 00:04:04]} Bxc3 {[%clk 00:02:01]} {[%emt 00:00:55]} 28.
Bxe7 {[%clk 00:14:35]} {[%emt 00:00:15]} Bf6 {[%clk 00:00:34]} {[%emt
00:01:57]} 29. Bf8+ {[%clk 00:14:33]} {[%emt 00:00:32]} Kg6 {[%clk 00:00:44]}
{[%emt 00:00:19]} 30. e7 {[%clk 00:14:28]} {[%emt 00:00:35]} 1-0